Cogmind - Beta 17.1 @@@ ROGUE MODE // 2026.09.02 @ 21:31:54 Player: lavinia Result: Destroyed by G-34 Mercenary with Small Laser Performance ------------- Evolutions (0) 0 Regions Visited (1) 200 Robots Destroyed (11) 55 Value Destroyed (321) 321 Prototype IDs (2) 40 Alien Tech Used (0) 0 Bonus (0) 0 TOTAL SCORE: 616 Bonus ------- None Cogmind --------- Core Integrity 0/250 Matter 297/300 Energy 97/100 System Corruption 0% Temperature Cool (41) Movement Flying (37) Location -10/Materials Parts ------- > --- POWER (1) -------- (None) > --- PROPULSION (2) --- Flight Unit Flight Unit > --- UTILITY (2) ------ Visual Processing Unit Signal Interpreter > --- WEAPON (2) ------- Light Assault Rifle > --- INVENTORY (5) ---- Wheel Targeting Computer Utility Shielding Small Laser Grenade Launcher Peak State ------------ > --- POWER ------------ Ion Engine > --- PROPULSION ------- Wheel Wheel > --- UTILITY ---------- Large Storage Unit Visual Processing Unit > --- WEAPON ----------- Medium Laser Light Assault Rifle > --- INVENTORY -------- Small Laser [Rating: 8] Favorites ----------- Power Ion Engine Engine Ion Engine Propulsion Wheel Wheel Wheel Flight Unit Flight Unit Utility Visual Processing Unit Storage Large Storage Unit Processor Visual Processing Unit Weapon Medium Laser Energy Gun Medium Laser Ballistic Gun Light Assault Rifle Build | -11 -10 ------- Run | Yrd Mat Slots Evolved . | . . Power . | . . Propulsion . | . . Utility . | . . Weapon . | . . Parts Attached 10 | 5 5 Power 1 | 1 . Engine 1 | 1 . Core . | . . Reactor . | . . Propulsion 4 | 2 2 Treads . | . . Leg . | . . Wheel 2 | 2 . Hover . | . . Flight 2 | . 2 Utility 3 | . 3 Device . | . . Storage 1 | . 1 Processor 2 | . 2 Hackware . | . . Protection . | . . Artifact . | . . Weapon 2 | 2 . Energy Gun 1 | 1 . Energy Cannon . | . . Ballistic Gun 1 | 1 . Ballistic Cannon . | . . Launcher . | . . Special Weapon . | . . Impact Weapon . | . . Slashing Weapon . | . . Piercing Weapon . | . . Special Melee Weapon . | . . Unidentified Prototypes . | . . Parts Lost 2 | . 2 Power 1 | . 1 Propulsion . | . . Utility . | . . Weapon 1 | . 1 Highest Loss Streak 2 | . 2 To Critical Strikes . | . . Average Backups 2 | 1 2 Power . | . . Propulsion . | . . Utility 1 | . 1 Weapon 1 | . 1 Tool/Special . | . . Unused Backups 5 | 1 4 Power . | . . Propulsion . | . . Utility 3 | 1 2 Weapon 2 | . 2 Tool/Special . | . . Average Slot Usage (%) 91 | . 91 Engine 12 | . 12 Wheel 20 | . 20 Flight 6 | . 6 Storage 2 | . 2 Processor 20 | . 20 Energy Gun 13 | . 13 Ballistic Gun 14 | . 14 Peak Build Rating 8 | 5 8 Average Rating 6 | 2 7 On Entrance 2 | . 5 Avg Prop Armor Cover (%) . | . . Naked Turns . | . . Heaviest Build 28 | 8 28 Greatest Support 20 | 20 20 Greatest Overweight (x) 1 | 1 1 Average Overweight (x) . | . . Largest Inventory Capacity 15 | 5 15 Average Capacity 6 | 5 6 Most Carried 5 | 5 5 Average Carried 2 | 1 2 Final Capacity 5 | 5 5 Final Carried 5 | 1 5 Class Distribution -------------------- 100% | Mutant Dominant Class ---------------- Mutant | -10/Materials Resources | -11 -10 ----------- Run | Yrd Mat Matter Collected 351 | 208 143 Remotely . | . . Salvage Created 435 | . 435 Parts 20 | . 20 Haulers Intercepted . | . . Recyclers Shooed . | . . Parts Field Recycled . | . . Retrieved Matter . | . . Parts Self-Destructed . | . . Prevented . | . . Parts Restored . | . . Kills | -11 -10 ------- Run | Yrd Mat Combat Hostiles Destroyed 10 | . 10 Guns 10 | . 10 Classes Destroyed 3 | . 3 Watcher 1 | . 1 Swarmer 2 | . 2 Grunt 8 | . 8 Best Kill Streak 3 | . 3 Combat Bots Only 3 | . 3 Max Kills in Single Turn 1 | . 1 Gunslinging . | . . Exploded . | . . Melee . | . . Uniques/NPCs Destroyed . | . . Combat | -11 -10 -------- Run | Yrd Mat Hostile Shots Fired 66 | . 66 Missed 23 | . 23 Hits 43 | . 43 Projectile 43 | . 43 Critical Strikes 1 | . 1 Damage Taken 542 | . 542 Core 254 | . 254 Absorbed by Shields . | . . Regen/Repaired (Parts) 58 | . 58 Core Remaining (%) 100 | 100 . Volleys Fired 49 | 3 46 Largest 2 | 1 2 Hottest 70 | 50 70 Shots Fired 89 | 3 86 Gun 89 | 3 86 Cannon . | . . Launcher . | . . Special . | . . Kinetic 46 | . 46 Thermal 43 | 3 40 Explosive . | . . Electromagnetic . | . . Robot Hit Streak 14 | 3 14 Robot Miss Streak 2 | . 2 Penetration Max . | . . Secondary Targets 2 | . 2 Max Gunslinging Chain 1 | . 1 Shots Hit Robots 65 | 3 62 Core Hits 24 | 1 23 Critical Kills . | . . Critical Parts Destroyed . | . . Critical Strikes 5 | . 5 Burn 5 | . 5 Melee Attacks . | . . Impact . | . . Slashing . | . . Piercing . | . . Sneak Attacks . | . . Combat Hostiles . | . . Follow-up Attacks . | . . Damage Inflicted 693 | 38 655 Guns 688 | 38 650 Cannons . | . . Explosions . | . . Melee . | . . Ramming 5 | . 5 Kinetic 272 | . 272 Thermal 416 | 38 378 Explosive . | . . Electromagnetic . | . . Impact . | . . Slashing . | . . Piercing . | . . Highest Corruption . | . . Average Corruption . | . . Corruption Purged . | . . Corruption Blocked . | . . Overload Shots . | . . Overflow Damage . | . . Projectiles . | . . Explosions . | . . Melee . | . . Knockbacks . | . . Impact . | . . Kinetic . | . . Secondary . | . . Self-Inflicted Damage 2 | . 2 Shots . | . . Rammed 1 | . 1 Targets Rammed 1 | . 1 Kicked . | . . Crushed . | . . Highest Temperature 316 | 20 316 Average Temperature 88 | 10 91 Received Heat Transfer 216 | . 216 Effects 1 | . 1 Energy Bleed 1 | . 1 Siege Activations . | . . Martial Activations . | . . Shielding Activations . | . . Robots Disrupted . | . . Combat Hostiles . | . . Robots Corrupted . | . . Combat Hostiles . | . . Parts Fried . | . . Impact Corruptions . | . . Robots Melted . | . . Combat Hostiles . | . . Parts Melted 4 | . 4 Heat Transferred 1591 | 111 1480 Parts Sabotaged . | . . Parts Stolen . | . . Parts Stripped . | . . Power Chain Reactions . | . . Alert | -11 -10 ------- Run | Yrd Mat Maximum Alert Level . | . . Low Security (%) 100 | 100 100 Level 1 . | . . Level 2 . | . . Level 3 . | . . Level 4 . | . . Level 5 . | . . High Security . | . . Max Security . | . . Peak Influence 128 | . 128 Initial . | . . Average 41 | . 46 Influence Increases 314 | . 314 Destroy 0b10 Robot/C 200 | . 200 Destroy 0b10 Robot/NC 5 | . 5 Destroy Leader 72 | . 72 Successful Hack 22 | . 22 Lose Combat Pursuer 15 | . 15 Influence Decreases 214 | . 214 Time Decay 194 | . 194 Lost Part 20 | . 20 Squads Dispatched 5 | . 5 Investigation 3 | . 3 Extermination . | . . Reinforcement 2 | . 2 Assault . | . . Garrison . | . . Intercept . | . . Searches Triggered . | . . Construction Impeded . | . . Haulers Reinforced . | . . Active Scanning Responses . | . . Cargo Convoy Interrupts . | . . Stealth | -11 -10 --------- Run | Yrd Mat Distress Signals 1 | . 1 Communications Jammed . | . . Distress Signals . | . . Times Spotted 19 | . 19 Peak Tracking Total 7 | . 7 Tactical Retreats 1 | . 1 Traps | -11 -10 ------- Run | Yrd Mat Traps Triggered 6 | . 6 Indirectly . | . . Trap Hack Attempts . | . . Triggered . | . . Disarmed . | . . Reprogrammed . | . . Reused . | . . Traps Extracted . | . . Installed . | . . Triggered . | . . Machines | -11 -10 ---------- Run | Yrd Mat Machines Disabled . | . . Max in Single Turn . | . . Machines Repaired . | . . Machines Dismantled . | . . Machines Sabotaged . | . . Overloaded Fab Kills . | . . Hacking | -11 -10 --------- Run | Yrd Mat Machines Accessed 3 | . 3 Terminals 2 | . 2 Fabricators . | . . Repair Stations 1 | . 1 Recycling Units . | . . Scanalyzers . | . . Garrison Access . | . . Total Hacks 14 | . 14 Successful 10 | . 10 Failed 4 | . 4 Catastrophic 2 | . 2 Database Lockouts . | . . Manual 1 | . 1 Terminals 8 | . 8 Fabricators . | . . Repair Stations 6 | . 6 Recycling Units . | . . Scanalyzers . | . . Garrison Access . | . . Terminal Hacks 5 | . 5 Prototype ID Bank 1 | . 1 Branch Access Points 1 | . 1 Emergency Access Points 1 | . 1 Terminal Index 1 | . 1 Locate Traps 1 | . 1 Fabricator Hacks . | . . Repair Station Hacks 5 | . 5 Scan Component 3 | . 3 Repair 2 | . 2 Recycling Unit Hacks . | . . Scanalyzer . | . . Garrison Access Hacks . | . . Unauthorized Hacks . | . . Terminals . | . . Fabricators . | . . Repair Stations . | . . Recycling Units . | . . Scanalyzers . | . . Garrison Access . | . . Data Cores Recovered . | . . Used . | . . Hacking Detections 3 | . 3 Full Trace Events 3 | . 3 Feedback Events . | . . Feedback Blocked . | . . Robot Schematics Acquired . | . . Robots Built . | . . Authchips . | . . Time . | . . Total Robot Build Rating . | . . Part Schematics Acquired . | . . Parts Built . | . . Authchips . | . . Time . | . . Total Part Build Rating . | . . Part Studies Acquired . | . . Parts Repaired 2 | . 2 Time 62 | . 62 Parts Recycled . | . . Recycled Matter . | . . Retrieved Matter . | . . Retrieved Components . | . . Parts Scanalyzed . | . . Part Schematics Acquired . | . . Parts Damaged . | . . Bothacking | -11 -10 ------------ Run | Yrd Mat Used RIF Installer . | . . Robots Hacked . | . . Non-combat . | . . Combat . | . . Robot Hacks Applied . | . . Relay Couplers Released . | . . Fabnet Peak Effective % . | . . Robots Rewired . | . . Allies Hacked . | . . Hacks Repelled . | . . Allies | -11 -10 -------- Run | Yrd Mat Total Allies . | . . Largest Group . | . . Highest-Rated Group . | . . Highest-Rated Ally . | . . Total Orders . | . . Ally Attacks . | . . Total Damage . | . . Kills . | . . Allies Corrupted . | . . Allies Melted . | . . Intel | -11 -10 ------- Run | Yrd Mat Active Infowar (turns) 344 | . 344 Optics 344 | . 344 Robot Analysis Total . | . . Derelict Logs Recovered . | . . Drone Launches . | . . Drone Recoveries . | . . Exploration | -11 -10 ------------- Run | Yrd Mat Turns Passed 509 | 57 452 Spaces Moved 327 | 52 275 Core 18 | 18 . Treads . | . . Legs . | . . Wheels 261 | 34 227 Hover . | . . Flight 48 | . 48 Fastest Speed 37 | 50 37 Average Speed 75 | 70 76 Slowest Speed 120 | 100 120 Overloaded Moves . | . . Propulsion Burnouts . | . . Robots Hopped 2 | . 2 Potential Cave-ins . | . . Cave-ins Triggered . | . . Exploration Rate (%) 29 | 3 56 Regions Visited 1 Branch Regions . Pre-discovered Areas . | . . Known Exits Taken . | . . Unknown Exits Taken 1 | 1 . Scrap Searched . | . . Spaces Dug . | . . Terrain Destroyed . | . . Melee . | . . Projectile . | . . AOE . | . . Terrain Rammed . | . . Walls Destroyed . | . . Machines Disabled . | . . Actions | -11 -10 --------- Run | Yrd Mat Total 506 | 69 437 Wait 104 | . 104 Move 323 | 51 272 Hop 1 | . 1 Pick Up 9 | 6 3 Fast Attach 11 | 4 7 Attach 1 | 1 . Detach 1 | . 1 Swap . | . . Drop 6 | 4 2 Fire 49 | 3 46 Melee . | . . Ram 1 | . 1 Kick . | . . Crush . | . . Escape Stasis . | . . Rewire . | . . Trap . | . . Miscellaneous . | . . Route ------- -11/Scrapyard -10/Materials (discovered 3 exits: [*Mat x2] / *Min) History --------- Turn | Location | Event 5 | -11/Scrapyard | Discovered new exit (range 16) 58 | -11/Scrapyard | Entered Materials 119 | -10/Materials | Discovered new exit (range 16) 217 | -10/Materials | Repaired Wheel 254 | -10/Materials | Repaired Broken Ion Engine 313 | -10/Materials | Build established: Mutant 344 | -10/Materials | Identified exit to Mines 401 | -10/Materials | Core integrity fell below 50% 423 | -10/Materials | Core integrity fell below 20% 473 | -10/Materials | Discovered new exit (range 17) 510 | -10/Materials | Destroyed by G-34 Mercenary with Small Laser Last Messages --------------- 00426_ K-01 Serf collects debris. 00429_ Overheating: Energy bleed (-60). 00429_ Ion Engine melted. 00429_ G-34 Mercenary destroyed. 00430_ Acquired 40 matter. 00432_ G-34 Mercenary destroyed. 00433_ Acquired 1 matter. 00439_ K-01 Serf collects debris. 00467_ Triggered Alarm Trap. 00467_ An alarm sounds. 00467_ ALERT: Alarm triggered, dispatching investigation squad. 00473_ EXIT=FOUND 00494_ G-34 Mercenary destroyed. 00494_ Switching to secondary target: G-34 Mercenary. 00496_ G-34 Mercenary suffers critical hit (Burn). 00497_ Med. Laser destroyed. 00503_ Ion Engine destroyed. Map ----- +----------------------------------------------------+ | #########???????# ! "Y" #????# | | # ######### #????# | | # # + ! #????# | | # # #####+#####????# | | # !# ### #??????# | | # # ######## | | # """ + % % | | # """"" # ### ##### | | # """"" ########+## #?# ## | | # """"" #??# """ #######?# ## "" | | # """ #??# "R" #########+## "T | | # #??# " " ## # | | ??#######??# ## # | | ???????????# ## "T" # | | ???????????# ## # | | ???????????################### | | ?????????????????????# ##+## | | ?????????????????????# " ## ## | | ?????????????????????# T # | | ?????????????????????# " = # | | ?????????????????????# [[# | | ?????????????????????# =%%*# | | ?????????????????????#####/## | | ########################[=% | | # # u =% % | | #""" # @ | | #""" #g """ """ !!! ###### | | #""" %g! """ """ !! # | | # =# """ """ ! !! + """ | | # # # """ | | # # # """ | | ####### ##########+#######? | | ??????# #????# #???#### | | ??????# #????# """ #??????? | | ??????# #????#""""" #??????? | | ??????# #????#""""" #??????? | | ??????# #????#""""" #??????? | | ??????# #????# """ #??????? | | ??????# #????# #??????? | | ??????# #????# #??????? | | ??????# #????###########??????? | | ??????# +?????????????????????? | | ??????? #?????????????????????? | | ??????? < ??????????????????????? | | ??????? ??????????????????????? | | ????????????????????????????????? | | ????????????????????????????????? | | ????????????????????????????????? | | ????????????????????????????????? | | ????????????????????????????????? | +----------------------------------------------------+ Best States ------------- Heat Dissipation 25 Energy Generation 10 Energy Capacity 250 Matter Stores 300 Matter Capacity 300 Sight Range 18 Terrain Scan Density 10 Evasion (%) 62 Item Schematics ----------------- None Robot Schematics ------------------ None Fabricated ------------ Nothing Repaired ---------- Wheel | 30% | -10/Materials Ion Engine | 50% | -10/Materials | Broken Studied --------- None Alien Tech Used ----------------- None Achievements -------------- For Emergencies Only Ghost 'Em Spot Them First Challenges ------------ None Game ------ Seed ScatterDisintegrationSpiker Manual? 0 Play Time 00:13:24 Cumulative 12.9 hours Start 2026.09.02 @ 21:17:44 End 2026.09.02 @ 21:31:54 Sessions 1 Manual Loads 0 Difficulty Rogue Special Mode None Game No. 24 Rogue 24 Adventurer 0 Explorer 0 Win Type - Total 0 Types 0/0/0/0/0/0/0/0/0/0 Lore% 8 Gallery% 9 Achievement% 8 Wizard Run 0 Options --------- Layout 1 ASCII 0 Keyboard 0 Movement Mouse Keybinds 0 Fullscreen 1 Font 24/Smallcaps Map View 50x35 Zoom Use 0% Tactical HUD 1 Map Filters NONE Filters NONE Steam 1 RUN: 63c8457b-fe67-4fd1-8f51-24fb66b7015c